fUSD/lending_fUSD_20250926
["ID","MTS","AMOUNT","RATE_DAILY","PERIOD"]
[387779525,1758847841474,-600.0,0.0002211,2]
[387779526,1758847841483,-217.0,0.00022122,2]
[387779527,1758847841494,-236.99804206,0.00022122,2]
[387779528,1758847841503,-3638.0,0.00022122,2]
[387779529,1758847841512,-150.0,0.00022122,2]
[387779530,1758847841524,-447.0,0.00022122,2]
[387779531,1758847841534,-150.0,0.00022172,2]
[387779532,1758847841544,-350.0,0.00022172,2]
[387779533,1758847841554,-150.0,0.00022174,2]
[387779534,1758847841565,-179.60927818,0.00022199,2]
[387779535,1758847841575,-7275.97,0.000222,2]
[387779536,1758847841585,-1000.0,0.00022299,2]
[387779537,1758847841596,-150.0,0.00022389,2]
[387779538,1758847841605,-150.0,0.00022389,2]
[387779539,1758847841614,-150.0,0.00022389,2]
[387779540,1758847841626,-150.0,0.00022389,2]
[387779541,1758847841636,-150.0,0.00022389,2]
[387779542,1758847841646,-150.0,0.00022389,2]
[387779543,1758847841656,-150.0,0.00022389,2]
[387779544,1758847841666,-150.0,0.00022389,2]
[387779545,1758847841675,-150.0,0.00022389,2]
[387779546,1758847841685,-150.0,0.00022389,2]
[387779547,1758847841694,-150.0,0.00022389,2]
[387779548,1758847841703,-150.0,0.00022389,2]
[387779549,1758847841713,-3638.0,0.00022396,2]
[387779550,1758847841722,-150.0,0.00022396,2]
[387779551,1758847841732,-150.0,0.00022448,2]
[387779552,1758847841742,-150.0,0.00022545,4]
[387779553,1758847841752,-150.0,0.00022555,4]
[387779554,1758847841761,-432.84,0.0002256,2]
[387779555,1758847841775,-1000.0,0.0002256,2]
[387779556,1758847841785,-600.0,0.00022658,2]
[387779557,1758847841796,-3638.0,0.0002267,2]
[387779558,1758847841807,-214.41293334,0.0002267,2]
[387779559,1758847841817,-168.46,0.00022695,2]
[387779560,1758847841827,-150.0,0.000227,4]
[387779561,1758847841836,-150.0,0.00022721,4]
[387779562,1758847841846,-150.0,0.00022744,4]
[387779563,1758847841855,-150.0,0.00022744,4]
[387779564,1758847841865,-179.60927818,0.00022774,2]
[387779565,1758847841875,-150.0,0.00022855,4]
[387779566,1758847841884,-150.0,0.00022887,4]
[387779567,1758847841894,-3638.0,0.00022944,2]
[387779568,1758847841903,-1000.0,0.00023,14]
[387779569,1758847841912,-165.0,0.00023,5]
[387779570,1758847841921,-150.0,0.00023011,4]
[387779571,1758847841931,-150.0,0.00023011,4]
[387779572,1758847841941,-150.0,0.00023011,4]
[387779573,1758847841950,-150.0,0.00023011,4]
[387779574,1758847841959,-150.0,0.00023052,4]
[387779575,1758847841969,-150.0,0.000231,4]
[387779576,1758847841978,-150.0,0.000231,4]
[387779577,1758847841987,-150.0,0.00023166,4]
[387779578,1758847841996,-600.0,0.00023206,2]
[387779579,1758847842006,-3638.0,0.00023218,2]
[387779580,1758847842015,-150.0,0.00023218,4]
[387779581,1758847842027,-303.86997244,0.00023233,2]
[387779582,1758847842036,-4447.0,0.00023287,2]
[387779583,1758847842046,-150.0,0.00023322,4]
[387779584,1758847842056,-1000.0,0.00023347,2]
[387779585,1758847842067,-179.60927818,0.00023349,2]
[387779586,1758847842077,-10000.0,0.00023353,2]
[387779587,1758847842087,-150.0,0.00023384,4]
[387779588,1758847842096,-167.28,0.00023428,2]
[387779589,1758847842106,-150.0,0.00023455,4]
[387779590,1758847842116,-150.0,0.00023455,4]
[387779591,1758847842125,-150.0,0.00023477,4]
[387779592,1758847842137,-3638.0,0.00023492,2]
[387779593,1758847842147,-150.0,0.00023507,2]
[387779594,1758847842156,-432.84,0.0002354,2]
[387779595,1758847842165,-150.0,0.0002355,4]
[387779596,1758847842176,-160.38535922,0.00023566,2]
[387779597,1758847842186,-168.46,0.00023568,2]
[387779598,1758847842196,-150.0,0.00023633,4]
[387779599,1758847842209,-150.0,0.00023633,4]
[387779600,1758847842218,-150.0,0.00023633,4]
[387779601,1758847842228,-150.0,0.00023633,4]
[387779602,1758847842238,-150.0,0.00023633,4]
[387779603,1758847842248,-150.0,0.00023633,4]
[387779604,1758847842258,-587.0,0.00023712,2]
[387779605,1758847842268,-150.0,0.00023716,4]
[387779606,1758847842278,-600.0,0.00023754,2]
[387779607,1758847842288,-3638.0,0.00023766,2]
[387779608,1758847842298,-150.0,0.00023788,4]
[387779609,1758847842307,-150.0,0.00023811,4]
[387779610,1758847842317,-150.0,0.00023811,4]
[387779611,1758847842327,-1501.95,0.00023836,2]
[387779612,1758847842336,-150.0,0.00023882,4]
[387779613,1758847842346,-179.60927818,0.00023923,2]
[387779614,1758847842356,-2351.0,0.00023941,2]
[387779615,1758847842365,-150.0,0.00023944,4]
[387779616,1758847842375,-2581.88857059,0.00024,2]
[387779617,1758847842385,-3638.0,0.0002404,2]
[387779618,1758847842394,-150.0,0.00024047,4]
[387779619,1758847842404,-150.0,0.00024099,4]
[387779620,1758847842413,-1000.0,0.00024134,2]
[387779621,1758847842423,-150.0,0.00024166,4]
[387779622,1758847842432,-150.0,0.00024166,4]
[387779623,1758847842444,-150.0,0.00024213,4]
[387779624,1758847842454,-150.0,0.00024255,4]
[387779625,1758847842465,-150.0,0.00024255,4]
[387779626,1758847842474,-150.0,0.00024255,4]
[387779627,1758847842484,-150.0,0.00024255,4]
[387779628,1758847842495,-600.0,0.00024302,2]
[387779629,1758847842504,-3638.0,0.00024314,2]
[387779630,1758847842514,-150.0,0.00024379,4]
[387779631,1758847842524,-1000.0,0.00024399,2]
[387779632,1758847842533,-1000.0,0.00024399,2]
[387779633,1758847842543,-150.0,0.0002441,4]
[387779634,1758847842554,-168.46,0.00024441,2]
[387779635,1758847842564,-179.60927818,0.00024498,2]
[387779636,1758847842574,-150.0,0.00024521,4]
[387779637,1758847842583,-150.0,0.00024521,4]
[387779638,1758847842593,-150.0,0.00024545,4]
[387779639,1758847842604,-160.89010143,0.0002455,15]
[387779640,1758847842613,-150.0,0.00024566,4]
[387779641,1758847842624,-3638.0,0.00024588,2]
[387779642,1758847842634,-1000.0,0.00024658,2]
[387779643,1758847842644,-295.85,0.00024658,2]
[387779644,1758847842654,-150.0,0.00024711,4]
[387779645,1758847842663,-150.0,0.00024721,4]
[387779646,1758847842673,-1000.0,0.00024799,2]
[387779647,1758847842683,-437635.0567909,0.000248,3]
[387779662,1758847849931,-151.87,0.000213,2]
[387779663,1758847849941,-150.12,0.000213,2]
[387779664,1758847849951,-288.38130189,0.000248,3]
[387779665,1758847849968,-2186.98865625,0.000248,3]
[387779673,1758848794616,500.33125109,0.00030136,120]
[387779701,1758849037613,-463.06,0.000196,2]
[387779702,1758849037623,-217.56643372,0.00019699,2]
[387779703,1758849037632,-2000.0,0.00019749,2]
[387779704,1758849037643,-1200.0,0.00019799,2]
[387779705,1758849037652,-1000.0,0.000199,2]
[387779706,1758849037661,-971.03,0.000199,2]
[387779707,1758849037669,-5112.34356628,0.00020928,2]
[387779708,1758849037720,-1467.11824235,0.00020928,2]
[387779709,1758849037778,-3359.73183699,0.00020928,2]
[387779710,1758849037835,-10060.80635438,0.00020928,2]
[387779711,1758849037845,-7666.27236877,0.00021277,2]
[387779712,1758849037857,-559.90269695,0.00021277,2]
[387779713,1758849037895,-1325.02077765,0.00021277,2]
[387779715,1758849037906,-4002.3115702,0.00021277,2]
[387779718,1758849037923,-440.56810984,0.00021277,2]
[387779720,1758849037934,-1857.20868986,0.00021277,2]
[387779722,1758849037946,-510.0,0.00021277,2]
[387779723,1758849037957,-539.32061941,0.00021277,2]
[387779724,1758849037969,-879.1401216,0.00021277,2]
[387779725,1758849037980,-769.28184302,0.00021277,2]
[387779727,1758849037993,-572.51883579,0.00021277,2]
[387779730,1758849038061,-878.45436691,0.00021277,2]
[387779731,1758849038072,-516.82390809,0.00021277,2]
[387779732,1758849038086,-343.84413923,0.00021389,2]
[387779733,1758849038099,-320.03667972,0.00021389,2]
[387779734,1758849038116,-4219.17873393,0.00021389,2]
[387779735,1758849038128,-116.94044712,0.00021389,2]
[387779736,1758849038138,-5981.54,0.000214,2]
[387779737,1758849038148,-5981.54,0.000215,2]
[387779738,1758849038163,-250.0,0.00021507,2]
[387779739,1758849038173,-500.0,0.00021507,2]
[387779741,1758849038182,-2000.0,0.0002156,2]
[387779743,1758849038192,-195.0,0.0002156,2]
[387779744,1758849038203,-1228.7129759,0.000216,2]
[387779745,1758849038215,-4022.79906774,0.000216,2]
[387779746,1758849038226,-730.02795636,0.000216,2]
[387779748,1758849038237,-1250.0,0.000216,2]
[387779750,1758849038249,-1559.94435715,0.00021667,2]
[387779808,1758849039634,-120.05564285,0.00021667,2]
[387779809,1758849039644,-1055.9985022,0.00021668,2]
[387779810,1758849039653,-38.63229916,0.00021669,2]
[387779811,1758849039665,-684.77800005,0.00021669,2]
[387779812,1758849039676,-1276.58970079,0.00021669,2]
[387779813,1758849039685,-525.65,0.00021771,2]
[387779814,1758849039695,-151.39,0.00021772,2]
[387779815,1758849039704,-1833.52,0.000219,2]
[387779816,1758849039713,-129.5954792,0.000219,2]
[387779817,1758849039727,-870.4045208,0.000219,2]
[387779818,1758849039737,-600.0,0.0002211,2]
[387779819,1758849039751,-293.8,0.00022279,2]
[387779820,1758849039762,-712.66,0.00022352,2]
[387779821,1758849039773,-5641.53,0.00022385,2]
[387779822,1758849039783,-200.0,0.0002239,2]
[387779823,1758849039792,-330.67721719,0.000224,2]
[387779824,1758849039804,-5650.86278281,0.000224,2]
[387779825,1758849039814,-3296.35601192,0.00022403,2]
[387779826,1758849039826,-1703.64398808,0.00022403,2]
[387779827,1758849039836,-2379.52,0.00022433,2]
[387779828,1758849039846,-170.73,0.00022453,2]
[387779829,1758849039856,-153.88,0.00022479,2]
[387779830,1758849039866,-4536.00987654,0.00022487,2]
[387779831,1758849039878,-463.99012346,0.00022487,2]
[387779832,1758849039888,-151.5,0.00022496,2]
[387779833,1758849039899,-400.28,0.00022508,2]
[387779835,1758849039908,-666.0,0.00022509,3]
[387779837,1758849039919,-200.0,0.00022524,2]
[387779839,1758849039928,-150.0,0.00022618,7]
[387779840,1758849039938,-2213.6,0.00022627,2]
[387779841,1758849039947,-1439.73255659,0.00022654,7]
[387779842,1758849039957,-250.0,0.00022657,2]
[387779843,1758849039967,-600.0,0.00022658,2]
[387779844,1758849039976,-150.0,0.00022663,2]
[387779845,1758849039985,-161.0,0.00023,3]
[387779846,1758849039997,-161.0,0.00023,3]
[387779847,1758849040007,-161.0,0.00023,3]
[387779848,1758849040017,-165.36,0.00023,3]
[387779849,1758849040027,-600.0,0.00023206,2]
[387779850,1758849040037,-400.28,0.00023352,2]
[387779851,1758849040046,-743.80598147,0.00023352,2]
[387779852,1758849040057,-256.19401853,0.00023352,2]
[387779853,1758849040067,-1000.0,0.00023352,2]
[387779854,1758849040077,-7687.64621636,0.00023353,2]
[387779856,1758849042955,-2312.35378364,0.00023353,2]
[387779857,1758849042965,-150.0,0.00023531,2]
[387779858,1758849042974,-160.38535922,0.00023566,2]
[387779859,1758849042983,-2351.0,0.00023711,2]
[387779860,1758849042992,-600.0,0.00023754,2]
[387779861,1758849043001,-1251.62,0.00023836,2]
[387779862,1758849043011,-30463.39,0.00024,2]
[387779863,1758849043021,-164.74,0.0002411,2]
[387779864,1758849043031,-400.28,0.00024196,2]
[387779865,1758849043041,-600.0,0.00024302,2]
[387779866,1758849043050,-161.0,0.000245,4]
[387779867,1758849043060,-161.0,0.000245,4]
[387779868,1758849043070,-161.0,0.000245,4]
[387779869,1758849043079,-161.0,0.000245,15]
[387779870,1758849043089,-161.0,0.000245,15]
[387779871,1758849043099,-161.0,0.000245,15]
[387779872,1758849043108,-166.99484099,0.00024558,2]
[387779873,1758849043117,-150.0,0.00024588,2]
[387779874,1758849043127,-150.0,0.00024588,2]
[387779876,1758849043136,-150.0,0.00024588,2]
[387779878,1758849043147,-150.0,0.00024588,2]
[387779879,1758849043158,-150.0,0.00024588,2]
[387779880,1758849043168,-150.0,0.00024588,2]
[387779881,1758849043177,-150.0,0.00024588,2]
[387779882,1758849043186,-150.0,0.00024588,2]
[387779883,1758849043195,-150.0,0.00024588,2]
[387779884,1758849043206,-150.0,0.00024588,2]
[387779885,1758849043215,-150.0,0.00024588,2]
[387779886,1758849043224,-1819.0,0.00024588,2]
[387779887,1758849043234,-150.0,0.00024588,2]
[387779888,1758849043244,-150.0,0.00024588,2]
[387779889,1758849043254,-150.0,0.00024588,2]
[387779890,1758849043263,-150.0,0.00024588,2]
[387779891,1758849043272,-150.0,0.00024588,2]
[387779892,1758849043282,-150.0,0.00024588,2]
[387779893,1758849043291,-152.05762566,0.00024588,2]
[387779894,1758849043301,-500.0,0.00024588,2]
[387779895,1758849043310,-150.0,0.00024588,2]
[387779896,1758849043319,-150.0,0.00024588,2]
[387779897,1758849043328,-516.82390809,0.00024658,3]
[387779898,1758849043337,-1000.0,0.00024658,3]
[387779899,1758849043347,-1000.0,0.00024658,3]
[387779900,1758849043356,-1000.0,0.00024658,3]
[387779901,1758849043365,-1000.0,0.00024658,3]
[387779902,1758849043375,-1000.0,0.00024658,3]
[387779903,1758849043576,-1000.0,0.00024658,3]
[387779904,1758849043587,-1000.0,0.00024658,3]
[387779905,1758849043596,-1000.0,0.00024658,3]
[387779906,1758849043605,-1000.0,0.00024658,3]
[387779907,1758849043614,-1000.0,0.00024658,3]
[387779908,1758849043623,-1000.0,0.00024658,3]
[387779909,1758849043633,-1000.0,0.00024658,3]
[387779910,1758849043642,-1000.0,0.00024658,3]
[387779911,1758849043651,-1000.0,0.00024658,3]
[387779912,1758849043662,-1000.0,0.00024658,3]
[387779913,1758849043672,-1000.0,0.00024658,3]
[387779914,1758849043681,-602.0,0.00024658,3]
[387779915,1758849043690,-1000.0,0.00024658,3]
[387779916,1758849043700,-1000.0,0.00024658,3]
[387779917,1758849043709,-1000.0,0.00024658,3]
[387779918,1758849043718,-1000.0,0.00024658,3]
[387779919,1758849043728,-1000.0,0.00024658,3]
[387779920,1758849043737,-1000.0,0.00024658,3]
[387779921,1758849043746,-1000.0,0.00024658,3]
[387779922,1758849043756,-1000.0,0.00024658,3]
[387779923,1758849043766,-1000.0,0.00024658,3]
[387779924,1758849043775,-1000.0,0.00024658,3]
[387779925,1758849043785,-1000.0,0.00024658,3]
[387779926,1758849043794,-1000.0,0.00024658,3]
[387779927,1758849043804,-1040.0,0.00024658,3]
[387779928,1758849043814,-236.68,0.00024658,2]
[387779929,1758849043823,-1000.0,0.00024658,2]
[387779930,1758849043833,-170.73,0.00024698,2]
[387779931,1758849043843,-500.0,0.00024753,2]
[387779932,1758849043852,-500.0,0.00024753,2]
[387779933,1758849043861,-500.0,0.00024753,2]
[387779934,1758849043871,-500.0,0.00024753,2]
[387779935,1758849043880,-500.0,0.00024753,2]
[387779936,1758849043890,-500.0,0.00024753,2]
[387779937,1758849043900,-500.0,0.00024753,2]
[387779938,1758849043909,-500.0,0.00024753,2]
[387779939,1758849043919,-500.0,0.00024753,2]
[387779940,1758849043930,-500.0,0.00024753,2]
[387779941,1758849043939,-500.0,0.00024753,2]
[387779942,1758849043949,-500.0,0.00024753,2]
[387779943,1758849043959,-500.0,0.00024753,2]
[387779944,1758849043969,-500.0,0.00024753,2]
[387779945,1758849043978,-500.0,0.00024753,2]
[387779946,1758849043987,-500.0,0.00024753,2]
[387779947,1758849043996,-500.0,0.00024753,2]
[387779948,1758849044006,-500.0,0.00024753,2]
[387779949,1758849044016,-500.0,0.00024753,2]
[387779950,1758849044025,-500.0,0.00024753,2]
[387779951,1758849044034,-500.0,0.00024753,2]
[387779952,1758849044044,-500.0,0.00024753,2]
[387779953,1758849044053,-500.0,0.00024753,2]
[387779954,1758849044062,-500.0,0.00024753,2]
[387779955,1758849044072,-618.92778127,0.00024753,2]
[387779956,1758849044081,-500.0,0.00024753,2]
[387779957,1758849044090,-500.0,0.00024753,2]
[387779958,1758849044099,-500.0,0.00024753,2]
[387779959,1758849044109,-500.0,0.00024753,2]
[387779960,1758849044118,-2039.8923056,0.00024754,2]
[387779961,1758849044127,-7031.0595594,0.00024754,2]
[387779962,1758849044136,-165.2983138,0.00024754,2]
[387779963,1758849044146,-950.16871538,0.00024774,2]
[387779964,1758849044158,-2360.20102,0.00024799,2]
[387779965,1758849044168,-151.0,0.00024799,2]
[387779966,1758849044178,-200.0,0.000248,2]
[387779967,1758849044188,-1229.0,0.000248,2]
[387779968,1758849044198,-1229.0,0.000248,2]
[387779969,1758849044207,-151.0,0.000248,2]
[387779970,1758849044217,-1229.0,0.000248,2]
[387779971,1758849044227,-151.0,0.000248,2]
[387779972,1758849044237,-1229.0,0.000248,2]
[387779973,1758849044247,-200.0,0.000248,2]
[387779974,1758849044257,-1000.0,0.000248,3]
[387779975,1758849044267,-818.0,0.000248,2]
[387779976,1758849044276,-600.0,0.0002485,2]
[387779977,1758849044285,-150.0,0.00024862,2]
[387779978,1758849044295,-150.0,0.00024862,2]
[387779979,1758849044305,-150.0,0.00024862,2]
[387779980,1758849044315,-150.0,0.00024862,2]
[387779981,1758849044328,-150.0,0.00024862,2]
[387779982,1758849044338,-150.0,0.00024862,2]
[387779983,1758849044348,-150.0,0.00024862,2]
[387779984,1758849044358,-1819.0,0.00024862,2]
[387779985,1758849044367,-150.0,0.00024862,2]
[387779986,1758849044377,-150.0,0.00024862,2]
[387779987,1758849044386,-569.21954217,0.00024862,2]
[387779988,1758849044396,-200.0,0.00024862,2]
[387779989,1758849044405,-478.7648987,0.0002489,3]
[387779990,1758849044416,-179.60927818,0.0002489,2]
[387779991,1758849044425,-645.91,0.000249,7]
[387779992,1758849044435,-8059.97974876,0.000249,2]
[387779993,1758849044445,-48108.2477267,0.0002497,3]
[387779994,1758849044455,-500.0,0.00024973,2]
[387779995,1758849044464,-1000.0,0.00024979,2]
[387779996,1758849044474,-1000.0,0.00024979,2]
[387779997,1758849044483,-64144.3303023,0.0002498,3]
[387779998,1758849044493,-1000.0,0.00024989,2]
[387779999,1758849044503,-96216.4954535,0.0002499,3]
[387780000,1758849044513,-85784.0938267,0.0002499,3]
[387780001,1758849044522,-1000.0,0.00024999,2]
[387780002,1758849044531,-1000.0,0.00024999,2]
[387780003,1758849044541,-1826.3,0.00025,7]
[387780004,1758849044550,-200000.0,0.00025,2]
[387780005,1758849044560,-400.28,0.0002504,2]
[387780006,1758849044569,-200.0,0.00025048,2]
[387780007,1758849044578,-16036.0825756,0.00025126,3]
[387780008,1758849044587,-200.0,0.00025136,2]
[387780009,1758849044597,-200.0,0.00025136,2]
[387780010,1758849044606,-200.0,0.00025136,2]
[387780011,1758849044616,-150.0,0.00025136,2]
[387780012,1758849044625,-150.0,0.00025136,2]
[387780013,1758849044634,-1819.0,0.00025136,2]
[387780014,1758849044643,-200.0,0.00025136,2]
[387780015,1758849044652,-200.0,0.00025136,2]
[387780016,1758849044661,-200.0,0.00025298,2]
[387780017,1758849044670,-1250.0,0.000253,2]
[387780018,1758849044680,-168.46,0.00025314,2]
[387780019,1758849044689,-413.50282432,0.00025377,2]
[387780020,1758849044698,-153072.91328218,0.00025378,2]
[387780021,1758849044714,-5778.16754541,0.00025378,2]
[387780022,1758849044728,-329.979,0.00025378,2]
[387780029,1758849045654,-150.0,0.00025353,2]
[387780030,1758849045663,-249.41740238,0.00025355,2]
[387780034,1758849193707,160.66,0.0002,30]
[387780035,1758849465835,3039.99925465,0.0003,120]
[387780036,1758849670371,157.95,0.00011846,2]
[387780037,1758849694924,10000.0,3.995e-05,120]
[387780058,1758850231895,-498.49099959,0.000198,2]
[387780099,1758850232412,-1421.775,0.000198,2]
[387780100,1758850232437,-689.4599387,0.000198,2]
[387780101,1758850232448,-996.82855395,0.000198,2]
[387780102,1758850232459,-258.38525471,0.000198,2]
[387780103,1758850232477,-762.52609094,0.000198,2]
[387780104,1758850232488,-822.98562314,0.000198,2]
[387780105,1758850232503,-500.0,0.000198,2]
[387780106,1758850232514,-1038.17143897,0.000198,2]
[387780107,1758850232524,-274.0,0.00019898,2]
[387780108,1758850232533,-1200.0,0.00019898,2]
[387780109,1758850232543,-300.0,0.00019898,2]
[387780110,1758850232552,-866.7479,0.000199,2]
[387780111,1758850232562,-2500.0,0.000199,2]
[387780112,1758850232571,-355.9281,0.000199,2]
[387780113,1758850232581,-500.0,0.00019999,2]
[387780114,1758850232590,-461.89277813,0.00019999,2]
[387780115,1758850232601,-500.0,0.00019999,2]
[387780116,1758850232611,-500.0,0.00019999,2]
[387780117,1758850232620,-500.0,0.00019999,2]
[387780118,1758850232630,-500.0,0.00019999,2]
[387780119,1758850232639,-184.77204328,0.00019999,2]
[387780120,1758850232650,-564.4615913,0.00019999,2]
[387780121,1758850232659,-178.75844447,0.00019999,2]
[387780122,1758850232668,-38032.4375056,0.0002,2]
[387780123,1758850232682,-783.23866056,0.0002,2]
[387780124,1758850232694,-252.31208,0.0002,2]
[387780125,1758850232705,-2406.84134023,0.0002,2]
[387780126,1758850237606,-449.65595773,0.0002,2]
[387780129,1758850237707,-1455.16175942,0.0002,2]
[387780130,1758850237719,-678.53476073,0.0002,2]
[387780131,1758850237731,-5184.88431627,0.0002,2]
[387780132,1758850237740,-5806.11568373,0.0002,2]
[387780133,1758850237810,-1653.33707538,0.0002,2]
[387780134,1758850237821,-33677.12218574,0.0002,2]
[387780135,1758850237832,-7200.0,0.0002,2]
[387780136,1758850237843,-17147.0,0.0002,2]
[387780137,1758850237909,-344.54813479,0.0002,2]
[387780140,1758850237921,-1734.3966557,0.0002,2]
[387780142,1758850237933,-881.0,0.0002,2]
[387780151,1758850239741,-4199.0638606,0.0002,2]
[387780152,1758850239753,-672949.85086015,0.0002,2]
[387780153,1758850239765,-599.84700461,0.0002,2]
[387780154,1758850239848,-297.62505359,0.0002,2]
[387780155,1758850239859,-8725.0,0.0002,2]
[387780156,1758850239871,-23050.19954889,0.0002,2]
[387780157,1758850239883,-4772.44199381,0.0002,2]
[387780158,1758850239895,-11177.11363015,0.0002,2]
[387780165,1758850243258,-0.03536144,0.0002,2]
[387780170,1758850243732,-552.93847917,0.0002,2]
[387780171,1758850243744,-306.68624988,0.0002,2]
[387780172,1758850243756,-1267.61936883,0.0002,2]
[387780173,1758850243767,-295.76830564,0.0002,2]
[387780174,1758850243784,-389.40000002,0.0002,2]
[387780175,1758850243802,-450.0000004,0.0002,2]
[387780176,1758850243814,-73438.94785593,0.0002,2]
[387780177,1758850243825,-35021.000001,0.0002,2]
[387780178,1758850243837,-983.39255058,0.0002,2]
[387780179,1758850243846,-236623.21817376,0.0002,2]
[387780180,1758850243860,-469002.77227529,0.0002,2]
[387780181,1758850243871,-4408.4144268,0.0002,2]
[387780188,1758850245704,-205.64575625,0.0001999,2]
[387780189,1758850245714,-10811.23056831,0.0002,2]
[387780190,1758850246057,-5677.06589452,0.0002,2]
[387780195,1758850343130,1587.39162023,0.0003,120]
[387780196,1758850398684,710.16725934,0.0003,120]
[387780199,1758850716714,1505.6048031,0.00030136,120]
[387780200,1758850760741,312.63153639,0.000301,120]
[387780201,1758850814775,406.7345,0.0001851,2]
[387780202,1758850873365,151.45,9.714e-05,2]
[387780203,1758850873593,151.45,0.00010254,2]
[387780204,1758850873839,151.45,0.00010793,2]
[387780205,1758850874102,151.45,0.00011333,2]
[387780206,1758850874294,151.45,0.00011873,2]
[387780207,1758850874699,151.45,0.00012412,2]
[387780208,1758850874921,151.45,0.00012952,2]
[387780209,1758850875149,151.45,0.00013492,2]
[387780210,1758850875352,151.45,0.00014031,2]
[387780211,1758850875564,151.45,0.00014571,2]
[387780212,1758850875768,151.45,0.00015111,2]
[387780213,1758850875966,151.45,0.0001565,2]
[387780214,1758850876235,151.45,0.0001619,2]
[387780215,1758850876441,151.45,0.0001673,2]
[387780216,1758850876644,151.45,0.00017269,2]
[387780217,1758850876851,151.45,0.00017809,2]
[387780218,1758850877253,151.45,0.00018349,2]
[387780219,1758850880626,-150.0,0.00018888,2]
[387780220,1758850898486,-185.05,0.00018794,2]
[387780221,1758850931973,241.28620549,0.000185,2]
[387780222,1758850941497,-268.03735725,0.00018788,2]
[387780223,1758850945825,-260.20056623,0.00018788,2]
[387780224,1758850948873,-292.65956276,0.00018788,2]
[387780225,1758850950084,-500.0,0.00018788,2]
[387780226,1758850952084,-281.35537765,0.00018788,2]
[387780227,1758850952110,-16.647613,0.00018794,2]
[387780228,1758850952138,-1.45,0.00018888,2]
[387780229,1758851048634,-300.0,0.00018996,2]
[387780230,1758851055744,-85.474874,0.00018996,2]
[387780231,1758851165987,181.0,0.00030136,120]
[387780232,1758851208221,-252.08428339,0.000189,2]
[387780233,1758851210398,-298.71874978,0.000189,2]
[387780234,1758851214113,-156.9543186,0.000189,2]
[387780235,1758851218087,-2794.65,0.000189,2]
[387780236,1758851220867,-152.898521,0.000189,2]
[387780237,1758851223245,-174.31,0.000189,2]
[387780238,1758851225256,-204.18810086,0.000189,2]
[387780239,1758851227533,-1248.44,0.000189,2]
[387780240,1758851233437,-300.0,0.000189,2]
[387780241,1758851236078,-1060.14397363,0.000189,2]
[387780242,1758851236091,-857.61205274,0.000189,2]
[387780243,1758851236101,-1060.14397363,0.000189,2]
[387780244,1758851236250,-343.68703961,0.000189,2]
[387780245,1758851239649,-259.08,0.00018899,2]
[387780246,1758851241649,-231.28369723,0.00018899,2]
[387780247,1758851243284,-193.63630277,0.00018899,2]
[387780248,1758851243307,-26.5121057,0.000189,2]
[387780249,1758851243381,-400.0,0.000189,2]
[387780250,1758851246121,-196.5,0.000189,2]
[387780251,1758851248282,-191.6054879,0.000189,2]